[Event "22nd Ruzomberok Open 2019"]
[Site "Ruzomberok"]
[Date "2019.07.01"]
[Round "3.32"]
[White "Kunzo, Slavomir"]
[Black "Kapicakova, Lucia"]
[Result "0-1"]
[ECO "E61"]
[WhiteElo "1593"]
[BlackElo "1776"]
[Annotator "NA"]
[PlyCount "152"]
[EventDate "2019.06.29"]
[EventType "swiss"]
[EventCountry "SVK"]
[SourceTitle "playchess.com"]
[Source "ChessBase"]
[SourceQuality "1"]
[TimeControl "40/5400+30:1800+30"]

1. c4 {[%emt 0:01:40]} Nf6 {[%emt 0:00:00]} 2. d4 {[%emt 0:00:18]} g6 {[%emt 0:00:00]} 3. Nc3 {[%emt 0:00:44]} Bg7 {[%emt 0:00:00]} 4. Nf3 {[%emt 0:06:23]} d6 {[%emt 0:00:17]} 5. e3 {[%emt 0:01:55]} O-O {[%emt 0:01:04]} 6. Be2 {[%emt 0:00:28]} Nbd7 {[%emt 0:01:04]} 7. O-O {[%emt 0:00:40]} e5 {[%emt 0:00:31]} 8. dxe5 {[%emt 0:02:20]} dxe5 {[%emt 0:00:46]} 9. e4 c6 10. b4 {[%emt 0:11:10]} Qe7 {[%emt 0:07:44]} 11. Rb1 {[%emt 0:04:49]} Rd8 {[%emt 0:04:54]} 12. Qb3 {[%emt 0:02:02]} Nf8 {[%emt 0:07:06]} 13. c5 {[%emt 0:19:07]} Bg4 {[%emt 0:06:21]} 14. Be3 {[%emt 0:04:39]} Bxf3 {[%emt 0:10:10]} 15. Bxf3 {[%emt 0:01:30]} Ne6 {[%emt 0:05:50]} 16. Ne2 {[%emt 0:05:26]} Rd7 {[%emt 0:06:39]} 17. Rfd1 {[%emt 0:04:00]} Rad8 {[%emt 0:04:25]} 18. Rxd7 {[%emt 0:00:43]} Qxd7 {[%emt 0:02:23]} 19. h3 {[%emt 0:04:16]} a6 {[%emt 0:05:46]} 20. a4 {[%emt 0:00:21]} Bf8 {[%emt 0:03:30]} 21. g4 {[%emt 0:03:15]} h6 {[%emt 0:04:24]} 22. Kg2 {[%emt 0:00:37]} Qd3 {[%emt 0:05:26]} 23. Qxd3 {[%emt 0:03:51]} Rxd3 {[%emt 0:00:07]} 24. h4 {[%emt 0:01:22]} Ra3 {[%emt 0:04:38]} 25. a5 {[%emt 0:00:54]} Rd3 {[%emt 0:04:35]} 26. g5 {[%emt 0:00:27]} hxg5 {[%emt 0:00:46]} 27. hxg5 {[%emt 0:00:13]} Nh7 {[%emt 0:01:25]} 28. Nc1 {[%emt 0:05:43]} Rd8 {[%emt 0:01:38]} 29. Be2 {[%emt 0:03:48]} Nhxg5 {[%emt 0:02:33]} 30. f3 {[%emt 0:00:27]} Bh6 {[%emt 0:03:40]} 31. Nb3 {[%emt 0:01:19]} f6 {[%emt 0:02:33]} 32. Rd1 {[%emt 0:00:39]} Rxd1 {[%emt 0:00:35]} 33. Bxd1 {[%emt 0:00:12]} Nf7 {[%emt 0:01:03]} 34. Bxh6 {[%emt 0:00:49]} Nxh6 {[%emt 0:00:06]} 35. Nd2 {[%emt 0:00:54]} Nf4+ {[%emt 0:00:54]} 36. Kf1 {[%emt 0:01:28]} Nd3 {[%emt 0:01:58]} 37. Ke2 {[%emt 0:03:10]} Nf4+ {[%emt 0:01:40]} 38. Ke3 {[%emt 0:00:58]} Kf8 {[%emt 0:01:19]} 39. Bb3 {[%emt 0:00:47]} Ke7 {[%emt 0:00:35]} 40. Nc4 {[%emt 0:00:26]} Nf7 {[%emt 0:00:35]} 41. Nb6 {[%emt 0:30:12]} Nd8 {[%emt 0:08:43]} 42. Nc8+ {[%emt 0:00:00]} Kf8 {[%emt 0:03:15]} 43. Nd6 {[%emt 0:00:00]} Ke7 {[%emt 0:04:28]} 44. Nc8+ {[%emt 0:00:00]} Ke8 {[%emt 0:01:10]} 45. Nd6+ {[%emt 0:00:00]} Ke7 {[%emt 0:01:28]} 46. Nc8+ {[%emt 0:00:00]} Kd7 {[%emt 0:00:11]} 47. Nd6 {[%emt 0:00:00]} Nfe6 {[%emt 0:01:57]} 48. Ba2 {[%emt 0:00:00]} Nd4 {[%emt 0:01:20]} 49. Bb1 {[%emt 0:00:00]} Nb5 {[%emt 0:00:45]} 50. Nc4 {[%emt 0:00:00]} Nc3 {[%emt 0:00:34]} 51. Nd2 {[%emt 0:00:00]} Nxb1 {[%emt 0:00:50]} 52. Nxb1 {[%emt 0:00:00]} Ne6 {[%emt 0:00:58]} 53. Na3 {[%emt 0:00:00]} Nd4 {[%emt 0:02:16]} 54. f4 {[%emt 0:00:00]} Nb5 {[%emt 0:02:42]} 55. Nc4 {[%emt 0:00:00]} exf4+ {[%emt 0:03:28]} 56. Kxf4 {[%emt 0:00:00]} Ke6 {[%emt 0:00:52]} 57. Ke3 {[%emt 0:00:00]} Nc3 {[%emt 0:01:03]} 58. Nd6 {[%emt 0:00:27]} Na2 {[%emt 0:00:52]} 59. Nxb7 {[%emt 0:01:45]} Nxb4 {[%emt 0:00:18]} 60. Nd8+ {[%emt 0:01:52]} Ke7 {[%emt 0:01:07]} 61. Nb7 {[%emt 0:00:29]} g5 {[%emt 0:00:47]} 62. Nd6 {[%emt 0:01:44]} Ke6 {[%emt 0:00:37]} 63. Nf5 {[%emt 0:00:28]} Ke5 {[%emt 0:00:49]} 64. Nd6 {[%emt 0:01:20]} Ke6 {[%emt 0:00:56]} 65. Ne8 {[%emt 0:00:21]} Kf7 {[%emt 0:00:32]} 66. Nd6+ {[%emt 0:00:34]} Kg6 {[%emt 0:00:23]} 67. Nf5 {[%emt 0:00:26]} Kh5 {[%emt 0:00:44]} 68. Ng7+ {[%emt 0:01:05]} Kh4 {[%emt 0:00:36]} 69. Ne8 {[%emt 0:01:00]} g4 {[%emt 0:00:53]} 70. Nxf6 {[%emt 0:00:48]} g3 {[%emt 0:00:19]} 71. Kf3 {[%emt 0:04:26]} Nd3 {[%emt 0:00:26]} 72. Kg2 {[%emt 0:00:47]} Nf4+ {[%emt 0:00:45]} 73. Kf3 {[%emt 0:03:17]} g2 {[%emt 0:00:28]} 74. Kf2 {[%emt 0:00:24]} Kh3 {[%emt 0:00:21]} 75. Nh5 Nxh5 {[%emt 0:00:32]} 76. e5 {[%emt 0:02:02]} Kh2 {[%emt 0:00:14]} 0-1

[Event "22nd Ruzomberok Open 2019"]
[Site "Ruzomberok"]
[Date "2019.07.01"]
[Round "3.33"]
[White "Malinovsky, Jozef"]
[Black "Zilkay, Dominik"]
[Result "1-0"]
[ECO "D02"]
[WhiteElo "1715"]
[BlackElo "1328"]
[Annotator "NA"]
[PlyCount "55"]
[EventDate "2019.06.29"]
[EventType "swiss"]
[EventCountry "SVK"]
[SourceTitle "playchess.com"]
[Source "ChessBase"]
[SourceQuality "1"]
[TimeControl "40/5400+30:1800+30"]

1. d4 {[%emt 0:00:52]} d5 {[%emt 0:02:50]} 2. Nf3 {[%emt 0:02:15]} Nf6 {[%emt 0:00:12]} 3. g3 {[%emt 0:00:03]} c5 {[%emt 0:01:55]} 4. c3 {[%emt 0:01:17]} Nc6 {[%emt 0:00:05]} 5. Bg2 {[%emt 0:00:20]} Bf5 {[%emt 0:00:35]} 6. O-O {[%emt 0:01:38]} e6 {[%emt 0:00:15]} 7. Nbd2 {[%emt 0:02:00]} cxd4 {[%emt 0:00:47]} 8. Nxd4 {[%emt 0:01:00]} Nxd4 {[%emt 0:00:47]} 9. cxd4 {[%emt 0:00:01]} Be7 {[%emt 0:00:22]} 10. Qa4+ {[%emt 0:00:11]} Qd7 {[%emt 0:00:37]} 11. Qxd7+ {[%emt 0:00:16]} Kxd7 {[%emt 0:00:09]} 12. Nf3 {[%emt 0:00:30]} Bd6 {[%emt 0:03:27]} 13. Nh4 {[%emt 0:00:59]} Bc2 {[%emt 0:03:44]} 14. b3 {[%emt 0:00:14]} h6 {[%emt 0:00:33]} 15. Bb2 {[%emt 0:02:26]} Ke7 {[%emt 0:04:33]} 16. Rac1 {[%emt 0:01:52]} Bh7 {[%emt 0:00:03]} 17. Rc3 {[%emt 0:02:41]} Bb4 {[%emt 0:01:20]} 18. Rc7+ {[%emt 0:00:12]} Nd7 {[%emt 0:00:53]} 19. Rxb7 {[%emt 0:01:58]} Bd6 {[%emt 0:00:22]} 20. Rc1 {[%emt 0:02:48]} f6 {[%emt 0:05:24]} 21. Nf3 {[%emt 0:05:55]} Bg6 {[%emt 0:10:56]} 22. Bf1 {[%emt 0:08:22]} Rhg8 {[%emt 0:00:32]} 23. Rc6 {[%emt 0:06:57]} Be8 {[%emt 0:02:48]} 24. e3 {[%emt 0:02:46]} Bg6 {[%emt 0:10:12]} 25. Bb5 {[%emt 0:02:14]} Rgd8 {[%emt 0:05:22]} 26. Rxd6 {[%emt 0:01:13]} Kxd6 {[%emt 0:05:56]} 27. Ba3+ {[%emt 0:00:12]} Nc5 {[%emt 0:00:20]} 28. Bxc5# {[%emt 0:00:15]} 1-0

[Event "22nd Ruzomberok Open 2019"]
[Site "Ruzomberok"]
[Date "2019.07.01"]
[Round "3.34"]
[White "Hajtmansky, Milan"]
[Black "Mikulec, Martin"]
[Result "1/2-1/2"]
[ECO "B52"]
[WhiteElo "1521"]
[BlackElo "1875"]
[Annotator "NA"]
[PlyCount "141"]
[EventDate "2019.06.29"]
[EventType "swiss"]
[EventCountry "SVK"]
[SourceTitle "playchess.com"]
[Source "ChessBase"]
[SourceQuality "1"]
[TimeControl "40/5400+30:1800+30"]

1. e4 c5 2. Nf3 d6 3. Bb5+ Bd7 4. Bxd7+ Nxd7 5. O-O Ngf6 6. d3 e6 7. Bg5 Be7 8. Bxf6 Bxf6 9. c3 O-O 10. Nbd2 Rc8 11. Rb1 a6 12. Nc4 Qc7 13. Ne3 g6 14. Ng4 Bg7 15. Qd2 h5 16. Ne3 Bh6 17. Qe2 Qc6 18. Rfd1 Rce8 19. Nc2 f5 20. e5 dxe5 21. Nxe5 Nxe5 22. Qxe5 Qd5 23. Qxd5 exd5 24. Re1 Kf7 25. Kf1 b6 26. Rxe8 Rxe8 27. Re1 Rxe1+ 28. Kxe1 Ke6 29. g3 Bg7 30. Ke2 b5 31. Ke3 a5 32. Kd2 g5 33. b4 axb4 34. cxb4 cxb4 35. Nxb4 Bd4 36. Ke2 Bc3 37. Nc2 g4 38. Ke3 Bb2 39. Ke2 d4 40. Ne1 Kd5 41. Ng2 Kc5 42. Kd2 Kb4 43. Kc2 Ka3 44. Kb1 Bc3 45. Nh4 Be1 46. f3 f4 47. fxg4 fxg3 48. hxg3 Bxg3 49. Nf5 h4 50. g5 Bf2 51. g6 h3 52. g7 h2 53. g8=Q h1=Q+ 54. Kc2 Qc6+ 55. Kb1 Qc3 56. Qa8+ Kb4 57. Qf8+ Ka4 58. Qa8+ {[%emt 0:58:30]} Qa5 59. Qxa5+ Kxa5 60. Kb2 Kb4 61. a3+ Ka4 62. Ka2 Be3 63. Kb2 Bf4 64. Ka2 Be5 65. Kb2 Ka5 66. Kb3 Bf6 67. Ng3 Bh4 68. Ne4 Be1 69. Nc5 Bc3 70. Ne4 Be1 71. Nc5 1/2-1/2

[Event "22nd Ruzomberok Open 2019"]
[Site "Ruzomberok"]
[Date "2019.07.01"]
[Round "3.35"]
[White "Petrasko, Jozef"]
[Black "Kukan, Michal"]
[Result "1-0"]
[ECO "A22"]
[WhiteElo "1455"]
[BlackElo "1698"]
[Annotator "NA"]
[PlyCount "67"]
[EventDate "2019.06.29"]
[EventType "swiss"]
[EventCountry "SVK"]
[SourceTitle "playchess.com"]
[Source "ChessBase"]
[SourceQuality "1"]
[TimeControl "40/5400+30:1800+30"]

1. c4 {[%emt 0:00:00]} Nf6 {[%emt 0:00:00]} 2. Nc3 {[%emt 0:00:00]} e5 {[%emt 0:00:44]} 3. g3 {[%emt 0:00:13]} d5 {[%emt 0:00:56]} 4. cxd5 {[%emt 0:00:13]} Nxd5 {[%emt 0:00:21]} 5. Bg2 {[%emt 0:00:07]} c6 {[%emt 0:01:05]} 6. d3 {[%emt 0:00:57]} Be6 {[%emt 0:04:58]} 7. Nf3 {[%emt 0:02:19]} Bd6 {[%emt 0:01:49]} 8. Ng5 {[%emt 0:01:54]} Nxc3 {[%emt 0:09:57]} 9. bxc3 {[%emt 0:01:01]} Bd5 {[%emt 0:01:34]} 10. e4 {[%emt 0:02:23]} h6 {[%emt 0:03:37]} 11. exd5 {[%emt 0:07:26]} hxg5 {[%emt 0:00:25]} 12. Qa4 {[%emt 0:01:02]} b5 {[%emt 0:15:26]} 13. Qb3 {[%emt 0:01:46]} Na6 {[%emt 0:06:11]} 14. dxc6 {[%emt 0:00:34]} Nc7 {[%emt 0:00:52]} 15. Be3 {[%emt 0:12:46]} f5 {[%emt 0:05:30]} 16. O-O-O {[%emt 0:15:30]} f4 {[%emt 0:01:38]} 17. gxf4 {[%emt 0:01:40]} gxf4 {[%emt 0:00:19]} 18. Bd2 {[%emt 0:00:39]} Qf6 {[%emt 0:07:43]} 19. Be4 {[%emt 0:08:16]} a5 {[%emt 0:01:33]} 20. a4 {[%emt 0:00:47]} bxa4 {[%emt 0:06:03]} 21. Qxa4 {[%emt 0:01:51]} Ke7 {[%emt 0:03:39]} 22. Rde1 {[%emt 0:01:20]} Rhb8 {[%emt 0:01:18]} 23. d4 {[%emt 0:03:43]} Rb5 {[%emt 0:03:03]} 24. Rhg1 {[%emt 0:01:29]} Rab8 {[%emt 0:00:52]} 25. Rg6 {[%emt 0:03:51]} Qf8 {[%emt 0:06:44]} 26. dxe5 {[%emt 0:05:43]} Rxe5 {[%emt 0:00:40]} 27. c4 {[%emt 0:04:47]} Na6 {[%emt 0:00:44]} 28. Bc3 {[%emt 0:02:05]} Bb4 {[%emt 0:03:19]} 29. Bxe5 {[%emt 0:00:53]} Qd8 {[%emt 0:03:08]} 30. Rd1 {[%emt 0:01:56]} Qg8 {[%emt 0:03:59]} 31. Rd7+ {[%emt 0:01:02]} Ke8 {[%emt 0:00:16]} 32. Bd5 {[%emt 0:00:58]} Qh7 {[%emt 0:01:27]} 33. Bf7+ {[%emt 0:01:28]} Kf8 {[%emt 0:00:17]} 34. Bxg7+ {[%emt 0:01:07]} 1-0

[Event "22nd Ruzomberok Open 2019"]
[Site "Ruzomberok"]
[Date "2019.07.01"]
[Round "3.36"]
[White "Staffen, Robert"]
[Black "Slyk, Piotr"]
[Result "1-0"]
[ECO "C00"]
[WhiteElo "1683"]
[BlackElo "1082"]
[Annotator "NA"]
[PlyCount "111"]
[EventDate "2019.06.29"]
[EventType "swiss"]
[EventCountry "SVK"]
[SourceTitle "playchess.com"]
[Source "ChessBase"]
[SourceQuality "1"]
[TimeControl "40/5400+30:1800+30"]

1. e4 {[%emt 0:01:39]} e6 {[%emt 0:00:06]} 2. d4 {[%emt 0:00:13]} g6 {[%emt 0:00:08]} 3. Nf3 {[%emt 0:00:18]} Bg7 {[%emt 0:00:10]} 4. Be3 {[%emt 0:00:26]} a6 {[%emt 0:00:20]} 5. Bd3 {[%emt 0:00:25]} d6 {[%emt 0:00:16]} 6. c4 {[%emt 0:00:27]} Nf6 {[%emt 0:00:19]} 7. h3 {[%emt 0:00:15]} O-O {[%emt 0:00:16]} 8. Nc3 {[%emt 0:00:07]} Nc6 {[%emt 0:00:17]} 9. Rc1 {[%emt 0:00:26]} Bd7 {[%emt 0:00:43]} 10. Qd2 {[%emt 0:00:32]} e5 {[%emt 0:00:20]} 11. d5 {[%emt 0:00:44]} Ne7 {[%emt 0:00:18]} 12. O-O {[%emt 0:00:26]} Qc8 {[%emt 0:00:04]} 13. Nh2 {[%emt 0:03:23]} c6 {[%emt 0:01:04]} 14. f4 {[%emt 0:00:22]} c5 {[%emt 0:01:36]} 15. fxe5 {[%emt 0:00:46]} dxe5 {[%emt 0:00:13]} 16. Bg5 {[%emt 0:00:32]} Nexd5 {[%emt 0:08:19]} 17. exd5 {[%emt 0:01:18]} Nh5 {[%emt 0:00:38]} 18. g4 {[%emt 0:03:53]} Ng3 {[%emt 0:01:58]} 19. Rf6 {[%emt 0:01:52]} e4 {[%emt 0:02:00]} 20. Nxe4 {[%emt 0:00:58]} Nxe4 {[%emt 0:00:16]} 21. Bxe4 {[%emt 0:00:22]} Qc7 {[%emt 0:00:55]} 22. d6 {[%emt 0:01:20]} Qb6 {[%emt 0:00:42]} 23. Bd5 {[%emt 0:00:54]} Rad8 {[%emt 0:02:21]} 24. Rcf1 {[%emt 0:00:40]} Be6 {[%emt 0:04:09]} 25. Rxe6 {[%emt 0:01:51]} Bd4+ {[%emt 0:01:20]} 26. Kh1 {[%emt 0:01:30]} Rxd6 {[%emt 0:00:53]} 27. Rxd6 {[%emt 0:01:25]} Qxd6 {[%emt 0:00:12]} 28. Nf3 {[%emt 0:01:16]} Bg7 {[%emt 0:02:18]} 29. Kg2 {[%emt 0:00:50]} Qb6 {[%emt 0:00:30]} 30. Bh6 {[%emt 0:00:18]} Bxh6 {[%emt 0:04:08]} 31. Qxh6 {[%emt 0:00:21]} Qxb2+ {[%emt 0:00:11]} 32. Rf2 {[%emt 0:00:28]} Qf6 {[%emt 0:02:05]} 33. Ng5 {[%emt 0:00:51]} Qg7 {[%emt 0:00:31]} 34. Qxg7+ {[%emt 0:00:27]} Kxg7 {[%emt 0:00:17]} 35. Rxf7+ {[%emt 0:00:19]} Rxf7 {[%emt 0:00:15]} 36. Nxf7 {[%emt 0:00:17]} b5 {[%emt 0:00:10]} 37. cxb5 {[%emt 0:00:16]} axb5 {[%emt 0:00:32]} 38. g5 {[%emt 0:00:39]} c4 {[%emt 0:02:40]} 39. Kf3 {[%emt 0:00:10]} c3 {[%emt 0:03:28]} 40. Ke3 {[%emt 0:00:13]} b4 {[%emt 0:00:13]} 41. Kd3 {[%emt 0:30:32]} Kf8 {[%emt 0:32:30]} 42. Nh6 {[%emt 0:00:42]} Kg7 {[%emt 0:01:16]} 43. Bb3 {[%emt 0:00:21]} Kf8 {[%emt 0:01:09]} 44. Kc4 {[%emt 0:00:07]} c2 {[%emt 0:00:52]} 45. Bxc2 {[%emt 0:00:14]} Ke7 {[%emt 0:00:07]} 46. Kxb4 {[%emt 0:00:33]} Kd6 {[%emt 0:00:11]} 47. Ng4 {[%emt 0:00:27]} Kd5 {[%emt 0:00:33]} 48. a4 {[%emt 0:00:42]} Kd4 {[%emt 0:00:32]} 49. Nf6 {[%emt 0:00:38]} Ke5 {[%emt 0:00:20]} 50. Nxh7 {[%emt 0:00:13]} Kf4 {[%emt 0:00:08]} 51. Bxg6 {[%emt 0:00:22]} Kg3 {[%emt 0:00:16]} 52. Bf5 {[%emt 0:00:07]} Kh4 {[%emt 0:00:26]} 53. g6 {[%emt 0:00:11]} Kh5 {[%emt 0:00:14]} 54. g7 {[%emt 0:00:27]} Kh4 {[%emt 0:01:46]} 55. g8=Q {[%emt 0:00:42]} Kh5 {[%emt 0:00:12]} 56. Qf8 1-0

[Event "22nd Ruzomberok Open 2019"]
[Site "Ruzomberok"]
[Date "2019.07.01"]
[Round "3.37"]
[White "Segeda, Milos"]
[Black "Demko, Ladislav"]
[Result "0-1"]
[ECO "C65"]
[WhiteElo "1446"]
[BlackElo "1642"]
[Annotator "NA"]
[PlyCount "80"]
[EventDate "2019.06.29"]
[EventType "swiss"]
[EventCountry "SVK"]
[SourceTitle "playchess.com"]
[Source "ChessBase"]
[SourceQuality "1"]
[TimeControl "40/5400+30:1800+30"]

1. e4 {[%emt 0:00:00]} e5 {[%emt 0:00:00]} 2. Nf3 {[%emt 0:00:00]} Nc6 {[%emt 0:00:00]} 3. Bb5 {[%emt 0:00:00]} Nf6 {[%emt 0:00:00]} 4. d3 {[%emt 0:00:21]} d6 {[%emt 0:00:00]} 5. Bg5 {[%emt 0:00:31]} Be7 {[%emt 0:00:42]} 6. Bxf6 {[%emt 0:00:20]} Bxf6 {[%emt 0:00:05]} 7. h3 {[%emt 0:00:52]} O-O {[%emt 0:00:09]} 8. O-O {[%emt 0:00:11]} a6 {[%emt 0:00:05]} 9. Bxc6 {[%emt 0:00:32]} bxc6 {[%emt 0:00:21]} 10. Nbd2 {[%emt 0:03:00]} Re8 {[%emt 0:00:14]} 11. c4 {[%emt 0:01:38]} c5 {[%emt 0:00:55]} 12. Rb1 {[%emt 0:04:05]} c6 {[%emt 0:01:06]} 13. Nh2 {[%emt 0:03:59]} Bg5 {[%emt 0:00:18]} 14. Ndf3 {[%emt 0:01:30]} Bh6 {[%emt 0:00:38]} 15. g4 {[%emt 0:03:41]} Bf4 {[%emt 0:01:31]} 16. Kh1 {[%emt 0:01:32]} Kh8 {[%emt 0:01:05]} 17. Rg1 {[%emt 0:01:21]} g6 {[%emt 0:01:48]} 18. Qa4 {[%emt 0:02:40]} Bd7 {[%emt 0:00:24]} 19. b4 {[%emt 0:00:19]} cxb4 {[%emt 0:00:13]} 20. Rxb4 {[%emt 0:01:05]} c5 {[%emt 0:00:02]} 21. Rb8 {[%emt 0:01:24]} Bxa4 {[%emt 0:00:25]} 22. Rxd8 {[%emt 0:00:05]} Rexd8 {[%emt 0:00:07]} 23. Rb1 {[%emt 0:00:59]} Rab8 {[%emt 0:00:13]} 24. Rxb8 {[%emt 0:00:09]} Rxb8 25. Kg2 Rb2 {[%emt 0:01:46]} 26. Nf1 {[%emt 0:00:59]} Rxa2 {[%emt 0:00:36]} 27. h4 {[%emt 0:00:50]} Bc2 {[%emt 0:00:15]} 28. Ng5 {[%emt 0:00:29]} Bxg5 {[%emt 0:00:26]} 29. hxg5 {[%emt 0:00:03]} Bxd3 {[%emt 0:00:07]} 30. Ng3 {[%emt 0:00:58]} Bxc4 {[%emt 0:00:09]} 31. Nf5 {[%emt 0:02:38]} gxf5 {[%emt 0:00:20]} 32. gxf5 {[%emt 0:00:04]} Bd3 {[%emt 0:00:19]} 33. Kf3 {[%emt 0:00:11]} Be2+ {[%emt 0:00:25]} 34. Ke3 {[%emt 0:00:23]} Bf1 {[%emt 0:00:12]} 35. f3 {[%emt 0:00:08]} c4 {[%emt 0:00:14]} 36. f4 {[%emt 0:00:20]} exf4+ {[%emt 0:00:26]} 37. Kxf4 {[%emt 0:00:06]} c3 {[%emt 0:00:04]} 38. g6 {[%emt 0:00:18]} hxg6 {[%emt 0:00:06]} 39. e5 {[%emt 0:00:32]} dxe5+ {[%emt 0:00:30]} 40. Kxe5 {[%emt 0:00:03]} gxf5 0-1

[Event "22nd Ruzomberok Open 2019"]
[Site "Ruzomberok"]
[Date "2019.07.01"]
[Round "3.38"]
[White "Horbal, Michal"]
[Black "Cebo, Vladimir"]
[Result "0-1"]
[ECO "D00"]
[WhiteElo "1121"]
[BlackElo "1577"]
[Annotator "NA"]
[PlyCount "72"]
[EventDate "2019.06.29"]
[EventType "swiss"]
[EventCountry "SVK"]
[SourceTitle "playchess.com"]
[Source "ChessBase"]
[SourceQuality "1"]
[TimeControl "40/5400+30:1800+30"]

1. d4 {[%emt 0:00:00]} d5 {[%emt 0:00:00]} 2. Bf4 {[%emt 0:00:00]} e6 {[%emt 0:00:22]} 3. e3 {[%emt 0:01:07]} Nf6 {[%emt 0:00:29]} 4. Be2 {[%emt 0:02:31]} Bd6 {[%emt 0:01:04]} 5. Nh3 {[%emt 0:01:50]} Qe7 {[%emt 0:04:23]} 6. Nd2 {[%emt 0:02:28]} e5 {[%emt 0:01:18]} 7. dxe5 {[%emt 0:03:31]} Bxe5 {[%emt 0:00:13]} 8. c3 {[%emt 0:02:27]} Bxh3 {[%emt 0:02:07]} 9. gxh3 {[%emt 0:00:29]} Bxf4 {[%emt 0:00:54]} 10. Qa4+ {[%emt 0:01:46]} Nbd7 {[%emt 0:03:47]} 11. Qxf4 {[%emt 0:01:21]} O-O-O {[%emt 0:00:27]} 12. Bg4 {[%emt 0:01:44]} h5 {[%emt 0:00:35]} 13. Bxd7+ {[%emt 0:01:32]} Nxd7 {[%emt 0:00:27]} 14. Qd4 {[%emt 0:00:35]} Nb6 {[%emt 0:04:58]} 15. Qxg7 {[%emt 0:02:46]} Rdg8 {[%emt 0:02:57]} 16. Qd4 {[%emt 0:05:41]} Kb8 {[%emt 0:03:06]} 17. O-O-O {[%emt 0:01:21]} Qe6 {[%emt 0:00:58]} 18. Rhg1 {[%emt 0:02:31]} a6 {[%emt 0:01:38]} 19. Rxg8+ {[%emt 0:02:52]} Rxg8 {[%emt 0:00:37]} 20. Qf4 {[%emt 0:03:11]} Nd7 {[%emt 0:04:08]} 21. Nf3 {[%emt 0:04:22]} f6 {[%emt 0:02:49]} 22. Qd4 {[%emt 0:03:55]} Nb6 {[%emt 0:04:06]} 23. a3 {[%emt 0:04:05]} Rg2 {[%emt 0:03:41]} 24. Rg1 {[%emt 0:01:18]} Rxf2 {[%emt 0:01:09]} 25. Qf4 {[%emt 0:01:43]} Nc4 {[%emt 0:05:21]} 26. Nd4 {[%emt 0:02:10]} Qxe3+ {[%emt 0:01:58]} 27. Qxe3 {[%emt 0:01:32]} Nxe3 {[%emt 0:00:03]} 28. Rg8+ {[%emt 0:00:42]} Ka7 {[%emt 0:00:14]} 29. Rh8 {[%emt 0:01:01]} Nc4 {[%emt 0:02:42]} 30. Rxh5 {[%emt 0:00:44]} c6 {[%emt 0:00:22]} 31. Rf5 {[%emt 0:03:45]} Rxh2 {[%emt 0:00:31]} 32. Rxf6 {[%emt 0:00:39]} Rxh3 {[%emt 0:00:21]} 33. Kc2 {[%emt 0:00:28]} Rh2+ {[%emt 0:00:25]} 34. Kd3 {[%emt 0:01:18]} Nxb2+ {[%emt 0:01:52]} 35. Ke3 {[%emt 0:00:42]} Nc4+ {[%emt 0:01:31]} 36. Kd3 {[%emt 0:01:02]} Rd2# 0-1

[Event "22nd Ruzomberok Open 2019"]
[Site "Ruzomberok"]
[Date "2019.07.02"]
[Round "4.1"]
[White "Jakab, Bela"]
[Black "Farkas, Gabor"]
[Result "1/2-1/2"]
[ECO "B52"]
[WhiteElo "2278"]
[BlackElo "2353"]
[Annotator "ChessBase"]
[PlyCount "145"]
[EventDate "2019.06.29"]
[EventType "swiss"]
[EventCountry "SVK"]
[SourceTitle "playchess.com"]
[Source "ChessBase"]
[SourceQuality "1"]
[TimeControl "40/5400+30:1800+30"]

1. e4 {[%emt 0:00:00]} c5 {[%emt 0:00:00]} 2. Nf3 {[%emt 0:00:00]} d6 {[%emt 0:00:00]} 3. Bb5+ {[%emt 0:00:00]} Bd7 {[%emt 0:00:35]} 4. Bxd7+ {[%emt 0:00:00]} Qxd7 {[%emt 0:00:21]} 5. O-O {[%emt 0:00:26]} Nf6 {[%emt 0:01:46]} 6. Qe2 {[%emt 0:00:42]} e6 {[%emt 0:02:20]} 7. b3 {[%emt 0:01:28]} Be7 {[%emt 0:02:17]} 8. Bb2 {[%emt 0:00:42]} O-O {[%emt 0:01:44]} 9. d4 {[%emt 0:03:42]} cxd4 {[%emt 0:00:55]} 10. Nxd4 {[%emt 0:00:11]} Nc6 {[%emt 0:02:32]} 11. c4 {[%emt 0:01:45]} a6 {[%emt 0:04:47]} 12. Nd2 {[%emt 0:02:17]} Nxd4 {[%emt 0:02:41]} 13. Bxd4 {[%emt 0:00:08]} b5 {[%emt 0:00:40]} 14. Rac1 {[%emt 0:01:38]} Qb7 {[%emt 0:01:13]} 15. e5 {[%emt 0:07:16]} dxe5 {[%emt 0:01:05]} 16. Bxe5 {[%emt 0:00:07]} Rac8 {[%emt 0:09:11]} 17. Bxf6 {[%emt 0:03:46]} Bxf6 {[%emt 0:01:26]} 18. Ne4 {[%emt 0:00:26]} Be7 {[%emt 0:05:01]} 19. c5 {[%emt 0:05:46]} Rc6 {[%emt 0:01:52]} 20. b4 {[%emt 0:01:24]} Qc7 {[%emt 0:03:08]} 21. Rfd1 {[%emt 0:03:08]} Qe5 {[%emt 0:08:35]} 22. Ng3 {[%emt 0:04:21]} Bf6 {[%emt 0:10:53]} 23. Qxe5 {[%emt 0:10:56]} Bxe5 {[%emt 0:00:53]} 24. Ne2 {[%emt 0:00:30]} a5 {[%emt 0:19:02]} 25. Nd4 {[%emt 0:01:28]} Bxd4 {[%emt 0:02:48]} 26. Rxd4 {[%emt 0:00:06]} axb4 {[%emt 0:00:04]} 27. Rxb4 {[%emt 0:00:06]} Ra8 {[%emt 0:01:22]} 28. Rxb5 {[%emt 0:00:12]} Kf8 {[%emt 0:00:29]} 29. Rc2 {[%emt 0:00:31]} Rca6 {[%emt 0:00:39]} 30. Rbb2 {[%emt 0:01:29]} Ke8 {[%emt 0:02:34]} 31. Kf1 {[%emt 0:00:12]} Rc8 {[%emt 0:00:18]} 32. Ke2 {[%emt 0:01:17]} Ra5 {[%emt 0:00:17]} 33. c6 {[%emt 0:00:14]} Ra6 {[%emt 0:00:13]} 34. c7 {[%emt 0:00:08]} Kd7 {[%emt 0:00:40]} 35. Rb7 {[%emt 0:00:39]} e5 {[%emt 0:05:10]} 36. Kd2 {[%emt 0:01:16]} f5 {[%emt 0:01:16]} 37. Kc1 {[%emt 0:00:24]} e4 {[%emt 0:00:39]} 38. Kb2 {[%emt 0:00:18]} f4 {[%emt 0:04:28]} 39. Rb4 {[%emt 0:00:30]} Re6 {[%emt 0:00:48]} 40. Rd4+ {[%emt 0:01:07]} Ke7 {[%emt 0:00:48]} 41. Re2 {[%emt 0:36:19]} Rb6+ {[%emt 0:34:23]} 42. Ka3 {[%emt 0:01:07]} Rxc7 {[%emt 0:00:00]} 43. Rdxe4+ {[%emt 0:00:00]} Kf6 {[%emt 0:00:00]} 44. Rxf4+ {[%emt 0:00:00]} Kg5 {[%emt 0:00:00]} 45. Rb4 {[%emt 0:00:00]} Ra6+ {[%emt 0:00:00]} 46. Kb3 {[%emt 0:00:00]} Rc1 {[%emt 0:00:00]} 47. Kb2 {[%emt 0:00:00]} Rh1 {[%emt 0:00:00]} 48. g3 {[%emt 0:00:00]} Kh6 {[%emt 0:00:00]} 49. f4 {[%emt 0:00:00]} Ra5 {[%emt 0:00:00]} 50. a4 {[%emt 0:00:00]} g5 {[%emt 0:00:00]} 51. fxg5+ {[%emt 0:00:00]} Rxg5 {[%emt 0:00:00]} 52. Rb6+ {[%emt 0:00:00]} Kg7 {[%emt 0:00:00]} 53. Re7+ {[%emt 0:00:00]} Kf8 {[%emt 0:00:00]} 54. Rxh7 {[%emt 0:00:00]} Kg8 {[%emt 0:00:00]} 55. Rh4 {[%emt 0:00:00]} Re5 {[%emt 0:00:00]} 56. Rc6 {[%emt 0:00:00]} Ree1 {[%emt 0:00:00]} 57. Kb3 {[%emt 0:00:00]} Ra1 {[%emt 0:00:00]} 58. Kb4 {[%emt 0:00:00]} Rhb1+ {[%emt 0:00:00]} 59. Ka5 {[%emt 0:00:00]} Rb8 {[%emt 0:00:00]} 60. Rb4 {[%emt 0:00:00]} Ra8+ {[%emt 0:00:00]} 61. Ra6 {[%emt 0:00:00]} Re8 {[%emt 0:00:00]} 62. Ra7 {[%emt 0:00:00]} Rd1 {[%emt 0:00:00]} 63. h4 {[%emt 0:00:00]} Rg1 {[%emt 0:00:00]} 64. Rg4+ {[%emt 0:00:00]} Kh8 {[%emt 0:00:00]} 65. Rg5 {[%emt 0:00:00]} Ra1 {[%emt 0:00:00]} 66. Ra6 {[%emt 0:04:49]} Kh7 {[%emt 0:00:00]} 67. Rb5 {[%emt 0:00:19]} Re7 {[%emt 0:00:00]} 68. g4 {[%emt 0:01:09]} Rg1 {[%emt 0:00:00]} 69. g5 {[%emt 0:00:14]} Rg4 {[%emt 0:00:00]} 70. h5 {[%emt 0:00:11]} Rg7 {[%emt 0:00:00]} 71. Rh6+ {[%emt 0:00:21]} Kg8 {[%emt 0:00:00]} 72. Rb8+ {[%emt 0:00:12]} Kf7 {[%emt 0:00:00]} 73. Rf6+ {[%emt 0:00:20]} 1/2-1/2